fUST/lending_fUST_20250211
["ID","MTS","AMOUNT","RATE_DAILY","PERIOD"]
[352657885,1739218243186,-11848.84946806,0.00011236,4]
[352657888,1739218243196,-163.24,0.00011369,2]
[352657890,1739218243205,-209.98,0.00011369,2]
[352657892,1739218243215,-500.0,0.00011369,2]
[352657893,1739218243224,-662.26,0.00011369,2]
[352657895,1739218243233,-500.0,0.00011369,2]
[352657896,1739218243242,-500.0,0.00011369,2]
[352657897,1739218243252,-335.86,0.00011369,2]
[352657899,1739218243262,-500.0,0.00011369,2]
[352657901,1739218243271,-500.0,0.00011369,2]
[352657903,1739218243281,-500.0,0.00011369,2]
[352657905,1739218243291,-500.0,0.00011369,2]
[352657907,1739218243300,-500.0,0.00011369,2]
[352657908,1739218243309,-326.09216244,0.00011369,2]
[352657910,1739218243318,-500.0,0.00011369,2]
[352657912,1739218243328,-500.0,0.00011369,2]
[352657914,1739218243337,-500.0,0.00011369,2]
[352657916,1739218243347,-500.0,0.00011369,2]
[352657918,1739218243356,-500.0,0.00011369,2]
[352657920,1739218243365,-500.0,0.00011369,2]
[352657922,1739218243375,-500.0,0.00011369,2]
[352657924,1739218243384,-500.0,0.00011369,2]
[352657926,1739218243394,-500.0,0.00011369,2]
[352657928,1739218243403,-500.0,0.00011369,2]
[352657930,1739218243412,-939.74,0.00011369,2]
[352657932,1739218243421,-500.0,0.00011369,2]
[352657934,1739218243431,-500.0,0.00011369,2]
[352657936,1739218243440,-500.0,0.00011369,2]
[352657938,1739218243450,-500.0,0.00011369,2]
[352657940,1739218243459,-500.0,0.00011369,2]
[352657942,1739218243468,-2366.54,0.00011369,2]
[352657944,1739218243478,-500.0,0.00011369,2]
[352657946,1739218243488,-500.0,0.00011369,2]
[352657948,1739218243497,-500.0,0.00011369,2]
[352657950,1739218243506,-511.41,0.00011369,2]
[352657951,1739218243516,-500.0,0.00011369,2]
[352657952,1739218243525,-625.95687014,0.00011369,2]
[352657954,1739218243535,-500.0,0.00011506,2]
[352657956,1739218243544,-662.26,0.00011506,2]
[352657958,1739218243553,-500.0,0.00011506,2]
[352657960,1739218243562,-312.77,0.00011506,2]
[352657962,1739218243573,-176.6,0.00011506,2]
[352657964,1739218243582,-500.0,0.00011506,2]
[352657966,1739218243591,-500.0,0.00011506,2]
[352657968,1739218243600,-500.0,0.00011506,2]
[352657970,1739218243609,-500.0,0.00011506,2]
[352657972,1739218243619,-500.0,0.00011506,2]
[352657974,1739218243628,-500.0,0.00011506,2]
[352657976,1739218243637,-500.0,0.00011506,2]
[352657980,1739218243646,-500.0,0.00011506,2]
[352657984,1739218243655,-500.0,0.00011506,2]
[352657988,1739218243664,-500.0,0.00011506,2]
[352657992,1739218243673,-500.0,0.00011506,2]
[352657997,1739218243683,-500.0,0.00011506,2]
[352658000,1739218243692,-500.0,0.00011506,2]
[352658003,1739218243701,-939.74,0.00011506,2]
[352658005,1739218243711,-500.0,0.00011506,2]
[352658007,1739218243720,-500.0,0.00011506,2]
[352658009,1739218243731,-587.58,0.00011506,2]
[352658011,1739218243742,-500.0,0.00011506,2]
[352658013,1739218243751,-500.0,0.00011506,2]
[352658015,1739218243760,-2366.54,0.00011506,2]
[352658017,1739218243769,-500.0,0.00011506,2]
[352658019,1739218243779,-500.0,0.00011506,2]
[352658021,1739218243788,-511.41,0.00011506,2]
[352658023,1739218243797,-500.0,0.00011506,2]
[352658025,1739218243806,-500.0,0.00011643,2]
[352658027,1739218243815,-662.26,0.00011643,2]
[352658029,1739218243825,-500.0,0.00011643,2]
[352658031,1739218243834,-500.0,0.00011643,2]
[352658033,1739218243843,-500.0,0.00011643,2]
[352658035,1739218243852,-500.0,0.00011643,2]
[352658037,1739218243862,-500.0,0.00011643,2]
[352658039,1739218243871,-500.0,0.00011643,2]
[352658041,1739218243881,-500.0,0.00011643,2]
[352658043,1739218243891,-500.0,0.00011643,2]
[352658045,1739218243900,-500.0,0.00011643,2]
[352658047,1739218243910,-417.65,0.00011643,2]
[352658049,1739218243920,-508.73,0.00011643,2]
[352658051,1739218243933,-500.0,0.00011643,2]
[352658053,1739218243942,-500.0,0.00011643,2]
[352658055,1739218243952,-500.0,0.00011643,2]
[352658057,1739218243961,-939.74,0.00011643,2]
[352658059,1739218243970,-500.0,0.00011643,2]
[352658061,1739218243980,-500.0,0.00011643,2]
[352658063,1739218243990,-232.74,0.00011643,2]
[352658065,1739218244000,-2366.54,0.00011643,2]
[352658067,1739218244011,-500.0,0.00011643,2]
[352658069,1739218244021,-511.41,0.00011643,2]
[352658071,1739218244031,-500.0,0.00011643,2]
[352658073,1739218244040,-500.0,0.0001178,2]
[352658075,1739218244049,-662.26,0.0001178,2]
[352658077,1739218244060,-338.07,0.0001178,2]
[352658079,1739218244069,-500.0,0.0001178,2]
[352658081,1739218244079,-611.39475663,0.0001178,2]
[352658083,1739218244088,-500.0,0.0001178,2]
[352658085,1739218244098,-500.0,0.0001178,2]
[352658087,1739218244108,-500.0,0.0001178,2]
[352658089,1739218244117,-500.0,0.0001178,2]
[352658091,1739218244126,-500.0,0.0001178,2]
[352658093,1739218244135,-500.0,0.0001178,2]
[352658095,1739218244145,-500.0,0.0001178,2]
[352658097,1739218244154,-939.74,0.0001178,2]
[352658099,1739218244163,-500.0,0.0001178,2]
[352658101,1739218244172,-500.0,0.0001178,2]
[352658104,1739218244183,-500.0,0.0001178,2]
[352658105,1739218244192,-2366.54,0.0001178,2]
[352658107,1739218244201,-500.0,0.0001178,2]
[352658109,1739218244211,-511.41,0.0001178,2]
[352658112,1739218244221,-500.0,0.0001178,2]
[352658113,1739218244230,-500.0,0.00011917,2]
[352658115,1739218244239,-662.26,0.00011917,2]
[352658118,1739218244249,-500.0,0.00011917,2]
[352658120,1739218244258,-500.0,0.00011917,2]
[352658121,1739218244268,-500.0,0.00011917,2]
[352658123,1739218244277,-500.0,0.00011917,2]
[352658125,1739218244286,-500.0,0.00011917,2]
[352658127,1739218244295,-500.0,0.00011917,2]
[352658129,1739218244305,-278.4,0.00011917,2]
[352658131,1739218244314,-500.0,0.00011917,2]
[352658134,1739218244324,-939.74,0.00011917,2]
[352658135,1739218244333,-500.0,0.00011917,2]
[352658137,1739218244342,-499.00639071,0.00011917,2]
[352658139,1739218244351,-500.0,0.00011917,2]
[352658142,1739218244361,-2366.54,0.00011917,2]
[352658144,1739218244372,-500.0,0.00011917,2]
[352658146,1739218244381,-511.41,0.00011917,2]
[352658148,1739218244391,-500.0,0.00011917,2]
[352658150,1739218244400,-420.0,0.00012041,2]
[352658152,1739218244409,-243.04,0.00012054,2]
[352658154,1739218244418,-662.26,0.00012054,2]
[352658156,1739218244428,-500.0,0.00012054,2]
[352658158,1739218244437,-500.0,0.00012054,2]
[352658160,1739218244446,-500.0,0.00012054,2]
[352658162,1739218244456,-500.0,0.00012054,2]
[352658164,1739218244465,-500.0,0.00012054,2]
[352658166,1739218244474,-500.0,0.00012054,2]
[352658168,1739218244483,-593.54,0.00012054,2]
[352658170,1739218244493,-939.74,0.00012054,2]
[352658172,1739218244502,-500.0,0.00012054,2]
[352658174,1739218244511,-500.0,0.00012054,2]
[352658176,1739218244521,-2366.54,0.00012054,2]
[352658178,1739218244529,-500.0,0.00012054,2]
[352658180,1739218244539,-511.41,0.00012054,2]
[352658182,1739218244547,-662.26,0.00012191,2]
[352658183,1739218244556,-500.0,0.00012191,2]
[352658186,1739218244565,-500.0,0.00012191,2]
[352658188,1739218244574,-500.0,0.00012191,2]
[352658190,1739218244584,-500.0,0.00012191,2]
[352658192,1739218244593,-500.0,0.00012191,2]
[352658194,1739218244603,-500.0,0.00012191,2]
[352658196,1739218244613,-939.74,0.00012191,2]
[352658198,1739218244623,-210.07,0.00012191,2]
[352658200,1739218244632,-500.0,0.00012191,2]
[352658202,1739218244642,-2366.54,0.00012191,2]
[352658204,1739218244651,-500.0,0.00012191,2]
[352658206,1739218244660,-511.41,0.00012191,2]
[352658208,1739218244669,-662.26,0.00012328,2]
[352658210,1739218244678,-500.0,0.00012328,2]
[352658212,1739218244688,-500.0,0.00012328,2]
[352658214,1739218244697,-500.0,0.00012328,2]
[352658216,1739218244706,-500.0,0.00012328,2]
[352658218,1739218244715,-500.0,0.00012328,2]
[352658220,1739218244724,-500.0,0.00012328,2]
[352658222,1739218244734,-939.74,0.00012328,2]
[352658224,1739218244743,-500.0,0.00012328,2]
[352658226,1739218244755,-2366.54,0.00012328,2]
[352658228,1739218244764,-500.0,0.00012328,2]
[352658230,1739218244774,-511.41,0.00012328,2]
[352658232,1739218244783,-662.26,0.00012465,2]
[352658234,1739218244792,-500.0,0.00012465,2]
[352658236,1739218244802,-500.0,0.00012465,2]
[352658238,1739218244811,-500.0,0.00012465,2]
[352658240,1739218244820,-500.0,0.00012465,2]
[352658242,1739218244830,-500.0,0.00012465,2]
[352658244,1739218244839,-500.0,0.00012465,2]
[352658246,1739218244849,-939.74,0.00012465,2]
[352658248,1739218244859,-500.0,0.00012465,2]
[352658250,1739218244868,-2366.54,0.00012465,2]
[352658252,1739218244878,-500.0,0.00012465,2]
[352658254,1739218244888,-511.41,0.00012465,2]
[352658256,1739218244898,-38039.3414354,0.00012502,2]
[352658258,1739218244908,-662.26,0.00012602,2]
[352658260,1739218244918,-500.0,0.00012602,2]
[352658262,1739218244929,-500.0,0.00012602,2]
[352658264,1739218244940,-500.0,0.00012602,2]
[352658266,1739218244950,-500.0,0.00012602,2]
[352658268,1739218244959,-500.0,0.00012602,2]
[352658270,1739218244969,-500.0,0.00012602,2]
[352658272,1739218244979,-939.74,0.00012602,2]
[352658274,1739218244988,-500.0,0.00012602,2]
[352658276,1739218244998,-2366.54,0.00012602,2]
[352658278,1739218245008,-500.0,0.00012602,2]
[352658280,1739218245018,-511.41,0.00012602,2]
[352658282,1739218245029,-662.26,0.00012739,2]
[352658284,1739218245038,-500.0,0.00012739,2]
[352658286,1739218245048,-500.0,0.00012739,2]
[352658288,1739218245058,-500.0,0.00012739,2]
[352658290,1739218245067,-500.0,0.00012739,2]
[352658292,1739218245077,-500.0,0.00012739,2]
[352658294,1739218245087,-500.0,0.00012739,2]
[352658296,1739218245096,-939.74,0.00012739,2]
[352658298,1739218245106,-500.0,0.00012739,2]
[352658300,1739218245115,-2366.54,0.00012739,2]
[352658302,1739218245125,-500.0,0.00012739,2]
[352658304,1739218245135,-511.41,0.00012739,2]
[352658306,1739218245144,-500.0,0.00012876,3]
[352658308,1739218245154,-662.26,0.00012876,2]
[352658310,1739218245163,-500.0,0.00012876,2]
[352658312,1739218245173,-500.0,0.00012876,2]
[352658314,1739218245182,-500.0,0.00012876,2]
[352658316,1739218245191,-500.0,0.00012876,2]
[352658318,1739218245201,-500.0,0.00012876,2]
[352658320,1739218245210,-500.0,0.00012876,2]
[352658322,1739218245220,-939.74,0.00012876,2]
[352658324,1739218245229,-500.0,0.00012876,2]
[352658326,1739218245239,-2366.54,0.00012876,2]
[352658338,1739218245249,-500.0,0.00012876,2]
[352658341,1739218245361,-511.41,0.00012876,2]
[352658343,1739218245371,-662.26,0.00013013,2]
[352658345,1739218245381,-500.0,0.00013013,2]
[352658347,1739218245390,-500.0,0.00013013,2]
[352658349,1739218245400,-500.0,0.00013013,2]
[352658351,1739218245410,-500.0,0.00013013,2]
[352658353,1739218245419,-500.0,0.00013013,2]
[352658355,1739218245429,-500.0,0.00013013,2]
[352658357,1739218245438,-939.74,0.00013013,2]
[352658359,1739218245448,-314.96,0.00013013,2]
[352658361,1739218245457,-2366.54,0.00013013,2]
[352658363,1739218245467,-500.0,0.00013013,2]
[352658365,1739218245477,-511.41,0.00013013,2]
[352658367,1739218245487,-662.26,0.0001315,2]
[352658369,1739218245496,-500.0,0.0001315,2]
[352658371,1739218245506,-500.0,0.0001315,2]
[352658373,1739218245516,-367.65442594,0.0001315,2]
[352658375,1739218245525,-500.0,0.0001315,2]
[352658377,1739218245535,-500.0,0.0001315,2]
[352658379,1739218245545,-558.43,0.0001315,2]
[352658381,1739218245554,-939.74,0.0001315,2]
[352658383,1739218245563,-2366.54,0.0001315,2]
[352658385,1739218245573,-500.0,0.0001315,2]
[352658387,1739218245582,-511.41,0.0001315,2]
[352658389,1739218245592,-587.0,0.00013232,2]
[352658391,1739218245601,-500.0,0.00013286,2]
[352658393,1739218245611,-446.21862624,0.00013286,2]
[352658395,1739218245620,-662.26,0.00013287,2]
[352658397,1739218245630,-500.0,0.00013287,2]
[352658399,1739218245639,-349.08141832,0.00013287,2]
[352658401,1739218245649,-500.0,0.00013287,2]
[352658403,1739218245659,-529.98,0.00013287,2]
[352658405,1739218245669,-939.74,0.00013287,2]
[352658407,1739218245679,-2366.54,0.00013287,2]
[352658409,1739218245689,-500.0,0.00013287,2]
[352658410,1739218245699,-511.41,0.00013287,2]
[352658411,1739218245708,-500.0,0.0001339,2]
[352658412,1739218245718,-662.26,0.00013424,2]
[352658413,1739218245727,-387.2,0.00013424,2]
[352658414,1739218245737,-500.0,0.00013424,2]
[352658415,1739218245746,-939.74,0.00013424,2]
[352658416,1739218245756,-2366.54,0.00013424,2]
[352658417,1739218245766,-500.0,0.00013424,2]
[352658418,1739218245776,-511.41,0.00013424,2]
[352658419,1739218245786,-662.26,0.00013561,2]
[352658420,1739218245797,-559.63118429,0.00013561,2]
[352658421,1739218245806,-939.74,0.00013561,2]
[352658422,1739218245815,-2366.54,0.00013561,2]
[352658423,1739218245824,-500.0,0.00013561,2]
[352658424,1739218245834,-511.41,0.00013561,2]
[352658425,1739218245844,-662.26,0.00013698,2]
[352658426,1739218245853,-939.74,0.00013698,2]
[352658427,1739218245863,-2366.54,0.00013698,2]
[352658428,1739218245872,-500.0,0.00013698,2]
[352658429,1739218245881,-511.41,0.00013698,2]
[352658430,1739218245892,-401.285784,0.00013699,2]
[352658432,1739218245901,-662.26,0.00013835,2]
[352658434,1739218245911,-939.74,0.00013835,2]
[352658436,1739218245924,-2366.54,0.00013835,2]
[352658438,1739218245936,-500.0,0.00013835,2]
[352658440,1739218245946,-511.41,0.00013835,2]
[352658442,1739218245958,-662.26,0.00013972,2]
[352658444,1739218245968,-939.74,0.00013972,2]
[352658446,1739218245978,-2366.54,0.00013972,2]
[352658448,1739218245988,-449.98,0.00013972,2]
[352658452,1739218245999,-511.41,0.00013972,2]
[352658455,1739218246009,-429.0,0.00014,4]
[352658458,1739218246019,-662.42,0.00014109,2]
[352658460,1739218246030,-939.74,0.00014109,2]
[352658462,1739218246040,-2366.6204,0.00014109,2]
[352658464,1739218246050,-511.42,0.00014109,2]
[352658467,1739218246060,-213.131,0.00014133,2]
[352658470,1739218246071,-1564.41,0.000142,2]
[352658472,1739218246080,-823.0,0.00014542,2]
[352658474,1739218246089,-500.0,0.0001476,2]
[352658476,1739218246100,-396.0,0.0001477,2]
[352658478,1739218246109,-150.0,0.00015071,2]
[352658480,1739218246119,-1969.0,0.00015071,2]
[352658482,1739218246129,-537.973,0.00015071,2]
[352658484,1739218246138,-2294.0,0.00015071,2]
[352658486,1739218246147,-500.0,0.00015248,2]
[352658488,1739218246157,-2400.0,0.00015248,2]
[352658490,1739218246166,-429.0,0.000155,5]
[352658492,1739218246176,-522.05,0.00015969,2]
[352658494,1739218246186,-1000.0,0.00016,16]
[352658496,1739218246196,-1000.0,0.00016,2]
[352658499,1739218246206,-473.64374368,0.00016048,2]
[352658502,1739218246217,-500.0,0.0001613,2]
[352658505,1739218246227,-605.53,0.00016164,2]
[352658508,1739218246238,-500.0,0.00016226,7]
[352658511,1739218246248,-320.63,0.00016226,7]
[352658513,1739218246259,-153.903,0.0001637,2]
[352658515,1739218246268,-500.0,0.00016438,2]
[352658517,1739218246279,-600.0,0.00016537,2]
[352658519,1739218246289,-153.0,0.00016685,2]
[352658521,1739218246299,-600.0,0.00016709,2]
[352658523,1739218246308,-13267.29691025,0.00016778,2]
[352658525,1739218246317,-152.0,0.0001683,2]
[352658527,1739218246327,-10448.84194262,0.00016983,2]
[352658529,1739218246336,-500.0,0.00016986,3]
[352658531,1739218246346,-1000.0,0.00017,17]
[352658532,1739218246356,-1000.0,0.00017,3]
[352658534,1739218246366,-429.0,0.00017,6]
[352658537,1739218246376,-317.0,0.0001705,2]
[352658539,1739218246386,-170.4501297,0.00017053,2]
[352658541,1739218246396,-153.0,0.00017068,2]
[352658543,1739218246405,-435.4625161,0.00017068,2]
[352658545,1739218246415,-202.2444336,0.00017068,2]
[352658546,1739218246425,-500.0,0.00017073,2]
[352658548,1739218246435,-500.0,0.00017073,2]
[352658551,1739218246446,-500.0,0.00017073,2]
[352658553,1739218246456,-592.38746212,0.00017073,2]
[352658555,1739218246467,-151.0,0.00017076,2]
[352658557,1739218246477,-151.0,0.00017076,2]
[352658559,1739218246490,-151.0,0.00017076,2]
[352658561,1739218246500,-151.0,0.00017076,2]
[352658563,1739218246510,-151.0,0.00017076,2]
[352658565,1739218246519,-151.0,0.00017076,2]
[352658567,1739218246529,-151.0,0.00017076,2]
[352658569,1739218246539,-191.011462,0.00017076,2]
[352658571,1739218246548,-151.0,0.00017076,2]
[352658573,1739218246557,-151.0,0.00017076,2]
[352658575,1739218246568,-151.0,0.00017076,2]
[352658577,1739218246578,-151.0,0.00017076,2]
[352658579,1739218246587,-151.0,0.00017076,2]
[352658580,1739218246596,-151.0,0.00017076,2]
[352658583,1739218246607,-259.039662,0.00017076,2]
[352658585,1739218246617,-151.0,0.00017076,2]
[352658587,1739218246628,-189.060628,0.00017076,2]
[352658589,1739218246637,-151.0,0.00017076,2]
[352658591,1739218246647,-151.0,0.00017076,2]
[352658593,1739218246656,-151.0,0.00017076,2]
[352658595,1739218246666,-151.0,0.00017076,2]
[352658596,1739218246676,-151.0,0.00017076,2]
[352658599,1739218246687,-151.0,0.00017076,2]
[352658601,1739218246697,-151.0,0.00017076,2]
[352658603,1739218246706,-151.0,0.00017076,2]
[352658605,1739218246717,-151.0,0.00017076,2]
[352658607,1739218246726,-151.0,0.00017076,2]
[352658609,1739218246736,-151.0,0.00017076,2]
[352658610,1739218246746,-151.0,0.00017076,2]
[352658613,1739218246757,-252.072121,0.00017076,2]
[352658615,1739218246769,-151.0,0.00017076,2]
[352658617,1739218246780,-3521.1983489,0.00017076,7]
[352658619,1739218246789,-151.0,0.00017077,2]
[352658621,1739218246800,-151.0,0.00017077,2]
[352658623,1739218246809,-151.0,0.00017077,2]
[352658625,1739218246818,-151.0,0.00017077,2]
[352658627,1739218246828,-242.372922,0.00017077,2]
[352658629,1739218246838,-151.0,0.00017077,2]
[352658631,1739218246847,-151.0,0.00017077,2]
[352658633,1739218246856,-151.0,0.00017077,2]
[352658635,1739218246866,-151.0,0.00017077,2]
[352658637,1739218246875,-154.127623,0.00017077,2]
[352658639,1739218246885,-13692.77093561,0.00017083,5]
[352658641,1739218246895,-151.0,0.00017083,2]
[352658643,1739218246904,-151.0,0.00017083,2]
[352658645,1739218246915,-151.0,0.00017083,2]
[352658647,1739218246925,-151.0,0.00017083,2]
[352658649,1739218246935,-195.39217,0.00017083,2]
[352658651,1739218246945,-151.0,0.00017083,2]
[352658652,1739218246954,-1000.0,0.00017083,7]
[352658654,1739218246964,-1000.0,0.00017083,7]
[352658656,1739218246974,-1000.0,0.00017083,7]
[352658658,1739218246983,-1000.0,0.00017083,7]
[352658660,1739218246994,-1000.0,0.00017083,7]
[352658662,1739218247004,-1000.0,0.00017083,7]
[352658665,1739218247014,-1000.0,0.00017083,7]
[352658667,1739218247023,-1000.0,0.00017083,7]
[352658669,1739218247033,-1000.0,0.00017083,7]
[352658671,1739218247043,-1000.0,0.00017083,7]
[352658673,1739218247052,-1000.0,0.00017083,7]
[352658674,1739218247061,-1000.0,0.00017083,7]
[352658676,1739218247071,-1000.0,0.00017083,7]
[352658679,1739218247081,-1000.0,0.00017083,7]
[352658681,1739218247091,-1000.0,0.00017083,7]
[352658683,1739218247101,-1000.0,0.00017083,7]
[352658685,1739218247110,-1000.0,0.00017083,7]
[352658687,1739218247119,-1000.0,0.00017083,7]
[352658689,1739218247130,-1000.0,0.00017083,7]
[352658691,1739218247140,-1000.0,0.00017083,7]
[352658693,1739218247150,-1000.0,0.00017083,7]
[352658695,1739218247159,-151.0,0.00017083,2]
[352658697,1739218247169,-151.0,0.00017083,2]
[352658699,1739218247179,-151.0,0.00017083,2]
[352658701,1739218247188,-151.0,0.00017083,2]
[352658703,1739218247198,-151.0,0.00017083,2]
[352658705,1739218247208,-151.0,0.00017083,2]
[352658707,1739218247218,-218.541144,0.00017083,2]
[352658709,1739218247228,-151.0,0.00017083,2]
[352658711,1739218247238,-538.564478,0.00017083,2]
[352658713,1739218247247,-538.564478,0.00017083,2]
[352658715,1739218247258,-538.564478,0.00017083,2]
[352658717,1739218247267,-538.564478,0.00017083,2]
[352658719,1739218247277,-538.564478,0.00017083,2]
[352658721,1739218247287,-538.564478,0.00017083,2]
[352658723,1739218247296,-538.564478,0.00017083,2]
[352658725,1739218247306,-151.0,0.00017083,2]
[352658727,1739218247316,-538.564478,0.00017083,2]
[352658729,1739218247325,-538.564478,0.00017083,2]
[352658731,1739218247335,-538.564478,0.00017083,2]
[352658733,1739218247345,-151.0,0.00017083,2]
[352658735,1739218247354,-538.564478,0.00017083,2]
[352658737,1739218247364,-151.0,0.00017083,2]
[352658739,1739218247374,-151.0,0.00017083,2]
[352658741,1739218247385,-226.356509,0.00017083,2]
[352658743,1739218247396,-538.564478,0.00017083,2]
[352658745,1739218247406,-538.564478,0.00017083,2]
[352658747,1739218247415,-538.564478,0.00017083,2]
[352658749,1739218247425,-538.564478,0.00017083,2]
[352658751,1739218247435,-538.564478,0.00017083,2]
[352658753,1739218247444,-538.564478,0.00017083,2]
[352658755,1739218247454,-538.564478,0.00017083,2]
[352658757,1739218247463,-538.564478,0.00017083,2]
[352658759,1739218247474,-538.56448036,0.00017083,2]
[352658761,1739218247484,-151.0,0.00017083,2]
[352658765,1739218247519,-151.0,0.00017083,2]
[352658768,1739218247529,-151.0,0.00017083,2]
[352658770,1739218247539,-151.0,0.00017083,2]
[352658772,1739218247548,-151.0,0.00017083,2]
[352658773,1739218247558,-151.0,0.00017083,2]
[352658775,1739218247568,-151.0,0.00017083,2]
[352658778,1739218247579,-151.0,0.00017083,2]
[352658780,1739218247589,-261.07140524,0.00017083,2]
[352658782,1739218247599,-151.0,0.00017083,2]
[352658784,1739218247611,-289.18347,0.00017083,2]
[352658786,1739218247622,-151.0,0.00017083,2]
[352658788,1739218247633,-151.0,0.00017083,2]
[352658790,1739218247643,-151.0,0.00017083,2]
[352658792,1739218247653,-185.488662,0.00017083,2]
[352658794,1739218247662,-39330.02568432,0.00017083,61]
[352658802,1739218247738,-509.765,0.00017083,61]
[352658804,1739218247753,-843.90703281,0.00017083,61]
[352658807,1739218247774,-500.0,0.00012054,2]
[352658809,1739218247785,-102124.70374349,0.00017083,61]
[352658811,1739218247798,-252.15239808,0.00017083,61]
[352658835,1739218248044,-500.0,0.00012191,2]
[352658836,1739218248055,-222.15,0.00012328,2]
[352658838,1739218248067,-1277.85,0.000165,2]
[352658841,1739218248080,-376.28095343,0.000165,2]
[352658843,1739218248095,-345.86904657,0.000165,2]
[352658845,1739218248106,-315489.95216215,0.00017083,61]
[352658854,1739218248188,-500.0,0.00010958,2]
[352658856,1739218248198,-500.0,0.00011095,2]
[352658858,1739218248210,-500.0,0.00011232,2]
[352658860,1739218248221,-500.0,0.00011369,2]
[352658861,1739218248231,-500.0,0.00011506,2]
[352658863,1739218248241,-346.28886175,0.00011643,2]
[352658865,1739218248252,-151.0,0.00017083,2]
[352658867,1739218248261,-242.662874,0.00017083,2]
[352658869,1739218248272,-11002.83128307,0.00017083,61]
[352658872,1739218248285,-734.65,0.00017083,61]
[352659491,1739219232145,-5000.0,8.86e-05,2]
[352659492,1739219232168,-186.891827,9.04e-05,2]
[352659493,1739219232191,-24900.0,9.04e-05,2]
[352659494,1739219232340,-186.891827,9.055e-05,2]
[352659495,1739219232363,-186.891827,9.07e-05,2]
[352659496,1739219232386,-186.891827,9.085e-05,2]
[352659497,1739219232413,-8604.6476512,9.189e-05,2]
[352659498,1739219232435,-890.13396426,9.55e-05,2]
[352659499,1739219232456,-658.1777345,9.576e-05,2]
[352659500,1739219232477,-290.7942443,9.965e-05,2]
[352659501,1739219232498,-377.61121791,0.00010004,2]
[352659502,1739219232518,-250.0,0.00010104,2]
[352659503,1739219232540,-197.41028394,0.00010585,2]
[352659504,1739219232561,-551.25753082,0.00010585,2]
[352659505,1739219232583,-400.0,0.00010685,2]
[352659506,1739219232606,-7438.69753278,0.00010837,2]
[352659507,1739219232627,-500.0,0.00010958,2]
[352659508,1739219232649,-500.93290824,0.00010958,2]
[352659509,1739219232671,-500.0,0.00010958,2]
[352659510,1739219232694,-500.0,0.00010958,2]
[352659511,1739219232716,-500.0,0.00010958,2]
[352659512,1739219232737,-500.0,0.00010958,2]
[352659513,1739219232759,-500.0,0.00010958,2]
[352659514,1739219232781,-643.78933209,0.00010958,2]
[352659515,1739219232803,-500.0,0.00010958,2]
[352659516,1739219232824,-502.26018202,0.00010958,2]
[352659517,1739219232846,-500.0,0.00010958,2]
[352659518,1739219232869,-452.74843917,0.00010958,2]
[352659519,1739219232892,-500.0,0.00010958,2]
[352659520,1739219232915,-500.0,0.00010958,2]